[Event "15th Arad Open 2022"]
[Site "Arad"]
[Date "2022.08.14"]
[Round "9.7"]
[White "Ambru, Dan-Calin"]
[Black "Ionescu, Mihai"]
[Result "0-1"]
[ECO "E10"]
[WhiteElo "2001"]
[BlackElo "2250"]
[Annotator "TA"]
[PlyCount "52"]
[EventDate "2022.08.08"]
[EventType "swiss"]
[EventCountry "ROU"]
[SourceTitle "playchess.com"]
[Source "ChessBase"]
[SourceQuality "1"]
[TimeControl "5400+30"]

{[%evp 14,52,22,27,31,18,6,0,0,0,0,-6,0,4,4,-28,-15,-10,0,-4,0,-27,-33,-77,-64,-71,-69,-152,-149,-144,-150,-175,-144,-295,-279,-286,-281,-533,-533,-637,-592]} 1. d4 {[%emt 0:14:26]} Nf6 {[%emt 0:01:06]} 2. c4 {[%emt 0:00:16]} Nc6 {[%emt 0:00:26]} 3. Nf3 {[%emt 0:01:17]} e6 {[%emt 0:00:11]} 4. a3 {[%emt 0:00:04]} d6 {[%emt 0:00:16]} 5. Nc3 {[%emt 0:00:23]} g6 {[%emt 0:00:07]} 6. e4 {[%emt 0:03:24]} Bg7 {[%emt 0:00:13]} 7. Be2 {[%emt 0:00:09]} O-O {[%emt 0:00:10]} 8. O-O {[%emt 0:00:05]} Re8 {[%emt 0:00:05] E10: Blumenfeld Gambit.} 9. Bg5 {[%emt 0:13:03]} h6 {[%emt 0:00:30]} 10. Bh4 {[%emt 0:01:14]} g5 {[%emt 0:02:26] The position is equal.} 11. Bg3 {[%emt 0:01:28]} Nh5 {[%emt 0:00:44]} 12. d5 {[%emt 0:06:27]} Ne7 {[%emt 0:07:30]} 13. Rc1 {[%emt 0:05:25]} Ng6 {[%emt 0:03:12] [#]} 14. Re1 $146 {[%emt 0:08:37]} ({Predecessor:} 14. Ne1 Nhf4 15. Nd3 Nxe2+ 16. Nxe2 e5 17. c5 f5 18. exf5 Bxf5 19. cxd6 cxd6 20. Nc3 {0-1 (27) Hahn,A (2260)-Bologan,V (2608) Philadelphia 1999}) 14... Bd7 {[%emt 0:07:29]} 15. Nd4 {[%emt 0:05:06]} Nhf4 {[%emt 0:03:21]} 16. Bf1 {[%emt 0:01:40]} Qf6 {[%emt 0:04:03]} 17. Ndb5 {[%emt 0:07:48]} Rec8 {[%emt 0:01:12]} 18. Bxf4 gxf4 {[%emt 0:03:01]} 19. dxe6 fxe6 {[%emt 0:01:01][%cal Of4f3]} 20. c5 {[%emt 0:17:15]} ({White should try} 20. Be2 $15) 20... a6 $17 {[%emt 0:05:10]} 21. e5 {[%emt 0:00:17]} Nxe5 {[%emt 0:01:02]} 22. Ne4 {[%emt 0:00:06]} Qg6 {[%emt 0:01:33]} 23. Nbxd6 {[%emt 0:04:50] [#] This move loses the game for White.} (23. Nd4 $17 {keeps fighting.}) 23... cxd6 $19 {[%emt 0:00:48]} 24. Nxd6 {[%emt 0:00:08]} Rc7 {[%emt 0:06:11]} 25. Rxe5 $2 {[%emt 0:03:05]} (25. Nc4 Nxc4 26. Rxc4) 25... Bxe5 {[%emt 0:01:55]} 26. Bd3 {[%emt 0:00:27]} Qg7 {[%emt 0:02:06] Weighted Error Value: White=0.41/Black=0.05 (flawless)} 0-1

[Event "15th Arad Open 2022"]
[Site "Arad"]
[Date "2022.08.14"]
[Round "9.8"]
[White "Magold, Victor"]
[Black "Magold, Filip"]
[Result "0-1"]
[ECO "D20"]
[WhiteElo "2074"]
[BlackElo "2247"]
[Annotator "TA"]
[PlyCount "72"]
[EventDate "2022.08.08"]
[EventType "swiss"]
[EventCountry "ROU"]
[SourceTitle "playchess.com"]
[Source "ChessBase"]
[SourceQuality "1"]
[TimeControl "5400+30"]

{[%evp 9,72,-53,-55,-63,14,17,25,-45,-37,-35,-38,-40,-14,-34,-41,-37,-36,-75,-68,-89,-81,-83,-79,-83,-79,-86,-80,-81,-91,-81,-81,-91,-52,-64,-49,-97,-85,-99,-81,-141,-135,-145,-141,-169,-151,-196,-189,-192,-175,-212,-132,-205,-163,-212,-152,-206,-190,-440,-435,-400,-344,-503,-492,-691,-675]} 1. d4 {[%emt 0:00:03]} d5 {[%emt 0:01:05]} 2. c4 {[%emt 0:00:13]} dxc4 {[%emt 0:00:05]} 3. Nc3 {[%emt 0:01:02]} Nf6 {[%emt 0:00:06]} 4. e4 {[%emt 0:04:36]} e5 {[%emt 0:00:17]} 5. d5 {[%emt 0:03:09]} b5 $1 {[%emt 0:07:46]} 6. Nxb5 {[%emt 0:21:43] D20: Queen's Gambit Accepted: 3 e3 and 3 e4.} Bc5 {[%emt 0:21:51]} ({Black should play} 6... Nxe4 $15 7. Nc3 Nxc3 8. bxc3 Bc5) 7. Nc3 $11 {[%emt 0:09:08] [#]} O-O $146 {[%emt 0:19:13]} ({Predecessor:} 7... Ng4 8. Nh3 Qf6 9. Qc2 Ba6 10. f3 Ne3 11. Bxe3 Bxe3 12. Qa4+ Nd7 13. Bxc4 Bxc4 14. Qxc4 {0-1 (31) Marusic,N (2040)-Jentsch,D (2255) Zalakaros 1998}) 8. Be3 {[%emt 0:21:54]} (8. Bxc4 $11 Ng4 9. Nh3) 8... Bxe3 $15 9. fxe3 {[%emt 0:00:06]} Ng4 {[%emt 0:02:56]} 10. Qd2 {[%emt 0:00:20]} Qg5 {[%emt 0:00:41]} 11. Nf3 {[%emt 0:00:28]} Qxe3+ 12. Qxe3 {[%emt 0:00:07]} Nxe3 {[%emt 0:00:34]} 13. Nxe5 {[%emt 0:04:13]} Re8 {[%emt 0:05:23]} 14. Nxc4 {[%emt 0:00:29]} Nc2+ {[%emt 0:00:04]} 15. Kd2 {[%emt 0:00:13]} Nxa1 {[%emt 0:00:04] Black is more active.} 16. Bd3 {[%emt 0:00:17] [#]} Ba6 $1 {[%emt 0:01:16]} 17. Rxa1 {[%emt 0:00:32]} Nd7 {[%emt 0:01:31]} 18. b4 {[%emt 0:05:04] Prevents Nc5.} Bxc4 {[%emt 0:01:00]} 19. Bxc4 {[%emt 0:00:04]} Ne5 {[%emt 0:02:16]} 20. Be2 {[%emt 0:00:19]} Rad8 {[%emt 0:01:07]} 21. b5 {[%emt 0:00:25]} Rd6 {[%emt 0:01:56]} 22. Rf1 {[%emt 0:01:04] Black converts the advantage convincingly.} (22. g3 $15) 22... Rh6 $17 {[%emt 0:01:02]} 23. h3 {[%emt 0:01:17]} Rg6 {[%emt 0:00:04]} 24. Rf2 {[%emt 0:00:46]} (24. g4 $142) 24... Rg3 {[%emt 0:00:10]} 25. Kc2 {[%emt 0:03:49]} Kf8 {[%emt 0:01:14]} 26. Kb3 {[%emt 0:01:23]} f6 {[%emt 0:01:50]} 27. Kb4 {[%emt 0:00:30]} Ke7 {[%emt 0:00:41]} 28. Bf1 {[%emt 0:00:43]} Kd6 {[%emt 0:00:59]} 29. Rc2 {[%emt 0:03:52]} Rb8 {[%emt 0:01:55]} 30. a4 {[%emt 0:03:55]} (30. Ka5 $17) 30... Re3 {[%emt 0:01:14]} 31. Be2 {[%emt 0:05:02]} (31. Ka5 $142) 31... g6 {[%emt 0:01:56]} 32. Bf1 {[%emt 0:01:27]} (32. Ka5 $17 {was called for.}) 32... f5 {[%emt 0:02:13]} 33. Rf2 $2 {[%emt 0:01:34] [#]} (33. exf5 {only move.} gxf5 34. Rf2) 33... a5+ $19 {[%emt 0:00:28]} 34. Kb3 {[%emt 0:00:17]} Rf8 {[%emt 0:01:10]} ({Inferior is} 34... fxe4 35. Kc2 $17) 35. b6 {[%emt 0:01:47]} (35. Be2 $142) 35... cxb6 {[%emt 0:01:25] Strongly threatening ...Rc8.} 36. Bb5 {[%emt 0:00:05]} (36. Kb2 $142 Nd7 37. Nb5+ Ke5 38. Na3 Rxe4 39. Bb5 Rb4+ 40. Ka2) 36... Rc8 {[%emt 0:00:08] Weighted Error Value: White=0.49/Black=0.17 (very precise)} 0-1

[Event "15th Arad Open 2022"]
[Site "Arad"]
[Date "2022.08.14"]
[Round "9.9"]
[White "Ciocani, Iosif"]
[Black "Paraschiv, Paul-Alexandru"]
[Result "0-1"]
[ECO "C02"]
[WhiteElo "2012"]
[BlackElo "2181"]
[Annotator "TA"]
[PlyCount "173"]
[EventDate "2022.08.08"]
[EventType "swiss"]
[EventCountry "ROU"]
[SourceTitle "playchess.com"]
[Source "ChessBase"]
[SourceQuality "1"]
[TimeControl "5400+30"]

{[%evp 14,173,0,0,69,-45,-28,-28,-13,-15,14,-41,12,-114,-81,-147,-146,-141,-127,-160,-115,-157,-162,-168,-89,-76,6,1,0,0,7,-18,25,0,70,-4,-8,-5,-8,-9,-17,-19,-16,-18,-17,-22,-27,-263,-212,-354,-174,-143,-99,-101,-95,-301,-309,-445,-211,-228,-222,-312,-151,-138,-116,-116,-111,-143,-143,-137,-123,-116,-123,-130,-116,-385,-355,-286,-266,-413,-379,-327,-379,-389,-389,-555,-458,-445,-364,-431,-246,-364,-287,-214,0,-364,-364,-431,-386,-826,-842,-777,-743,-842,-842,-843,-520,-520,-490,-400,-393,-393,-386,-386,-364,-364,-357,-351,-342,-445,-438,-440,-433,-420,-406,-384,-358,-426,-35,-322,-312,-803,-538,-899,-537,-509,-412,-685,-550,-381,-381,-5081,-5081,-5081,-5081,-5081,-5073,-5073,-5073,-1877,-5057,-29975,-29977,-29975,-5066,-5066,-5033,-5019,-4375,-1950,-1950,-421]} 1. e4 {[%emt 1:31:00]} e6 {[%emt 0:01:20]} 2. d4 {[%emt 0:00:00]} d5 {[%emt 0:00:04]} 3. e5 {[%emt 0:00:00]} c5 {[%emt 0:00:26]} 4. c3 {[%emt 0:00:00]} Nc6 {[%emt 0:00:05]} 5. Nf3 {[%emt 0:00:00]} Qb6 {[%emt 0:00:06]} 6. Be2 {[%emt 0:00:00]} cxd4 {[%emt 0:01:19]} 7. cxd4 {[%emt 0:00:00]} Nh6 {[%emt 0:01:13]} 8. Bxh6 {[%emt 0:00:00] Hoping for Bc1. is now more promising than 8.Nc3.} gxh6 {[%emt 0:01:25] C02: French: Advance Variation.} (8... Qxb2 $11 9. Na3 Qxa3) 9. b3 {[%emt 0:00:00]} ({White should play} 9. Qd2 $14) 9... Bb4+ $15 {[%emt 0:01:38]} 10. Kf1 {[%emt 0:00:00]} Bd7 {[%emt 0:00:05][%cal Of7f6] Black has an edge.} 11. a3 {[%emt 0:05:00]} Be7 {[%emt 0:00:07]} 12. b4 {[%emt 0:00:00]} (12. Nc3 $11) 12... f6 {[%emt 0:02:06] [#]} (12... Rc8 $15 13. b5 Na5) 13. g3 $146 {[%emt 0:00:00]} (13. Nc3 $11 {keeps the balance.}) ({Predecessor:} 13. Nc3 O-O 14. Na4 Qd8 15. exf6 Bxf6 16. Nc5 Bc8 17. Qd2 Qe7 18. Bb5 Qg7 19. Bxc6 bxc6 {½-½ (43) Roth,C-Seyl,F Bad Wiessee 1997}) 13... fxe5 {[%emt 0:04:44]} 14. dxe5 {[%emt 0:00:00]} (14. Nxe5 $142 Bf6 15. Kg2 (15. Bh5+ Ke7 $17)) 14... O-O $17 {[%emt 0:00:27][%cal Oc6e5]} 15. Kg2 {[%emt 0:00:00] [#]} Nxe5 $1 {[%emt 0:01:38][%mdl 512]} 16. Nbd2 {[%emt 0:00:00]} (16. Rf1 Nxf3) 16... Ng6 {[%emt 0:04:48] 0x0.0013bbe8f914dp-1022s more active pieces.} 17. Nb3 {[%emt 0:00:00]} e5 {[%emt 0:00:39]} 18. h4 {[%emt 0:00:00]} e4 {[%emt 0:00:46]} (18... h5 $19 19. Kg1 e4) 19. Qxd5+ {[%emt 0:00:00]} Qe6 {[%emt 0:03:19]} (19... Kh8 $1 $17 20. Qxe4 Bc6) 20. Qxe6+ $11 {[%emt 0:00:00]} Bxe6 {[%emt 0:00:01]} 21. Nfd4 {[%emt 0:00:00]} Bd5 {[%emt 0:00:17]} 22. Rhd1 {[%emt 0:00:00]} Rad8 {[%emt 0:01:27]} 23. Kg1 {[%emt 0:00:00]} Rd6 {[%emt 0:00:58]} ({Better is} 23... b6 $11) 24. Nb5 {[%emt 0:00:00] [#]} (24. Nc5 $1 $14 Ne5 25. Nb5) 24... Nf4 $1 $36 {[%emt 0:05:36][%mdl 2048] White is under pressure.} 25. Bf1 {[%emt 0:00:00][%cal Be2f1,Bf1c4,Bc4d5][%mdl 32]} (25. N3d4 Rg6) 25... Rg6 {[%emt 0:00:28]} 26. Rxd5 {[%emt 0:00:00]} Nxd5 {[%emt 0:00:12]} 27. Bc4 {[%emt 0:08:00] [#]} e3 $1 {[%emt 0:00:13]} 28. Bxd5+ {[%emt 0:00:00]} Kh8 $1 {[%emt 0:00:35]} 29. Ra2 {[%emt 0:00:00]} (29. Bxb7 $2 exf2+ 30. Kh2 (30. Kg2 $2 Bxh4 31. Nd2 Rxg3+ 32. Kh2 Rg7 $19) 30... f1=Q $19) (29. Nxa7 $2 Rxf2 30. Nd4 Rxg3+ 31. Kh1 Bf6 $19) 29... Bxh4 {[%emt 0:01:17]} 30. f3 {[%emt 0:00:00]} (30. N5d4 $11 {and White stays safe.}) 30... Rd8 {[%emt 0:01:25]} (30... Bxg3 31. Kf1 $17) 31. Nc3 {[%emt 0:00:04]} (31. Bc4 $142 Rd1+ 32. Kg2 Rxg3+ 33. Kh2 Rxf3 34. N5d4 Rd2+ 35. Nxd2 Rf2+ 36. Kg1 exd2 37. Ra1) 31... Bxg3 {[%emt 0:04:37]} (31... Bf6 $142 32. Ne4 Rxd5) 32. Kf1 $19 {[%emt 0:01:49]} Bf2 {[%emt 0:00:05]} 33. Ke2 {[%emt 0:00:33]} Rg1 {[%emt 0:00:49]} 34. Kd3 $2 {[%emt 0:00:31]} (34. Ra1 $2 Rxa1 35. Nxa1 Bg3 36. Bxb7 Be5 $19) (34. f4 $17) 34... h5 $1 {[%emt 0:00:32] White must now prevent ...h4.} 35. Nc5 {[%emt 0:00:30]} (35. Kc4 {only move.}) 35... Rc1 {[%emt 0:02:41]} (35... h4 $142 {...h3 is the strong threat.} 36. Ne6 Rxd5+ $1 {[%mdl 512]} 37. Nxd5 h3) 36. N5e4 {[%emt 0:00:15]} (36. Rc2 $2 Rxc2 37. Kxc2 e2 38. Nxe2 Rxd5 $19) 36... Be1 {[%emt 0:00:38]} 37. Re2 {[%emt 0:00:31]} (37. Rc2 $2 Rxc2 38. Kxc2 h4 $19) (37. a4 $142) 37... h4 {[%emt 0:02:18] The board is on fire.} (37... Bxc3 $19 {and Black stays clearly on top.} 38. Nxc3 Rc8 39. Kxe3 R1xc3+ 40. Kf4 R8c7) 38. Rxe3 $17 {[%emt 0:00:38]} h3 {[%emt 0:00:10]} 39. Re2 {[%emt 0:00:02]} Rf8 {[%emt 0:00:18]} 40. Rh2 {[%emt 0:00:00]} Rxf3+ {[%emt 0:00:00]} 41. Ke2 {[%emt 0:00:00]} Rc2+ $1 {[%emt 0:00:00]} 42. Kxf3 {[%emt 0:00:00]} Rxh2 {[%emt 0:00:00]} 43. Ne2 {[%emt 0:00:00]} Rh1 {[%emt 0:00:00]} 44. N4g3 $2 {[%emt 0:00:00][%mdl 8192] Inhibits Rf1+.} (44. Kg4 $17) 44... Bxg3 $19 {[%emt 0:00:00]} ({Stronger than} 44... Rh2 45. Ne4 $17 (45. Bxb7 Bxg3 46. Nxg3 Ra2 $17)) 45. Kxg3 {[%emt 0:00:00]} ({Don't blunder} 45. Nxg3 $2 Ra1 46. b5 Rxa3+ 47. Kf2 Ra5 $19) 45... Re1 {[%emt 0:00:00]} 46. Bf3 {[%emt 0:02:02] [#]} (46. Nf4 $142 Re3+ 47. Kh2) 46... Ra1 $1 {[%emt 0:00:00]} 47. Kxh3 {[%emt 0:00:07]} Rxa3 {[%emt 0:00:00]} 48. Kg2 {[%emt 0:00:08]} Rb3 {[%emt 0:00:00]} 49. Bxb7 {[%emt 0:00:05]} (49. Kf2 $142 Rxb4 50. Ke3) 49... Rxb4 {[%emt 0:00:00]} 50. Ba6 {[%emt 0:02:19]} Kg7 {[%emt 0:00:00]} 51. Kf3 {[%emt 0:00:08]} Kf6 {[%emt 0:00:00]} (51... Rb6 $142 52. Bd3 a5) 52. Ng3 {[%emt 0:00:30]} (52. Nf4 {was the only chance.} Kg5 53. Ne6+ Kf5 54. Nc5) 52... Ra4 {[%emt 0:00:00]} 53. Bb5 {[%emt 0:00:08]} Rb4 {[%emt 0:00:00]} (53... Rd4 $142 54. Ne4+ Ke5) 54. Ba6 $1 {[%emt 0:00:25]} Ke5 {[%emt 0:00:00] Against Ne4} 55. Ne2 {[%emt 0:00:15]} Rb3+ {[%emt 0:00:00]} 56. Kg4 $2 {[%emt 0:00:59]} (56. Kf2) 56... Rb6 {[%emt 0:00:00]} 57. Bd3 {[%emt 0:00:12]} h6 {[%emt 0:00:00]} 58. Kh5 {[%emt 0:01:15]} a5 {[%emt 0:00:00]} 59. Bg6 {[%emt 0:00:52]} Rb2 {[%emt 0:00:00]} 60. Nc3 {[%emt 0:00:16]} Kd4 {[%emt 0:00:00]} 61. Na4 {[%emt 0:00:13]} Ra2 {[%emt 0:00:02]} 62. Be8 {[%emt 0:00:09]} Rh2+ {[%emt 0:00:24]} 63. Kg4 {[%emt 0:00:07]} Re2 {[%emt 0:00:58]} 64. Bd7 {[%emt 0:00:22]} Re5 {[%emt 0:00:17]} 65. Bc6 {[%emt 0:00:26]} Rg5+ {[%emt 0:00:11]} 66. Kh4 {[%emt 0:00:20]} Ke3 {[%emt 0:00:31]} 67. Bd7 {[%emt 0:00:50]} Kf4 {[%emt 0:00:15]} 68. Bc8 {[%emt 0:00:48]} Rg8 {[%emt 0:00:29]} 69. Bd7 {[%emt 0:00:15]} Rd8 {[%emt 0:00:40]} 70. Nb6 {[%emt 0:01:38]} Rb8 $2 {[%emt 0:00:08]} ({Black should try} 70... Ke5 $19 {Strongly threatening ...Kd6.} 71. Kh5 Kd6) 71. Na4 $2 {[%emt 0:00:07][%mdl 8192]} (71. Nc4 $1 $15) 71... Rb1 {[%emt 0:00:06]} 72. Nc3 $2 {[%emt 0:00:58]} (72. Kh3) 72... Rh1+ {[%emt 0:00:36]} 73. Bh3 {[%emt 0:00:04]} Kf3 {[%emt 0:00:05]} 74. Na4 {[%emt 0:00:19]} Rh2 {[%emt 0:00:24]} 75. Nc5 {[%emt 0:01:54]} (75. Nb6 $142) 75... Rc2 {[%emt 0:00:38]} 76. Nb3 {[%emt 0:00:18] Threatens to win with Nd4+.} Ra2 {[%emt 0:01:04]} 77. Nc1 $2 {[%emt 0:00:42]} (77. Bg4+ Kf4 78. Nc5) 77... Rh2 {[%emt 0:00:21]} 78. Nd3 {[%emt 0:00:32]} a4 {[%emt 0:00:21]} 79. Ne5+ {[%emt 0:00:06]} Kf4 {[%emt 0:00:54]} 80. Nc4 {[%emt 0:00:00]} Ra2 {[%emt 0:00:00]} 81. Kh5 {[%emt 0:00:00]} a3 {[%emt 0:00:00] ( -> ...Rh2)} 82. Nxa3 {[%emt 0:00:00]} Rxa3 {[%emt 0:00:00]} 83. Bc8 {[%emt 0:00:00]} Ra8 {[%emt 0:00:00]} (83... Rc3 $142 84. Bd7 Rd3 85. Bc8 Rd8 86. Be6 Rd2 87. Bc4 Rh2+ 88. Kg6 h5 89. Bb5 h4 90. Kg7 h3 91. Bf1 Rh1 92. Ba6 h2 93. Bb7 Re1 94. Kf8 {[#]} Re4 $1 {[%mdl 512]} 95. Bxe4 Kxe4 96. Ke7 Ke5 97. Kd8 h1=Q 98. Kc7 Qd5 99. Kc8 Kd6 100. Kb8 Kc6 101. Ka8 Kc7+ 102. Ka7 Qb7#) 84. Bd7 {[%emt 0:00:00] Black is clearly winning.} Rh8 {[%emt 0:00:00]} 85. Bg4 {[%emt 0:00:00]} Ke5 {[%emt 0:00:00]} 86. Kg6 {[%emt 0:00:00]} Rg8+ {[%emt 0:00:00]} 87. Kh5 {[%emt 0:00:00] Weighted Error Value: White=0.55/Black=0.39} 0-1

[Event "15th Arad Open 2022"]
[Site "Arad"]
[Date "2022.08.14"]
[Round "9.10"]
[White "Kazarian, Anna-Maja"]
[Black "Balaban-Voia, Alexandru"]
[Result "0-1"]
[ECO "B09"]
[WhiteElo "2139"]
[BlackElo "1869"]
[Annotator "TA"]
[PlyCount "64"]
[EventDate "2022.08.08"]
[EventType "swiss"]
[EventCountry "ROU"]
[SourceTitle "playchess.com"]
[Source "ChessBase"]
[SourceQuality "1"]
[TimeControl "5400+30"]

{[%evp 14,64,0,-33,-28,-128,-109,-280,-295,-286,-303,-327,-330,-315,-326,-324,-294,-377,-372,-362,-383,-396,-345,-329,-333,-339,-341,-359,-355,-359,-360,-439,-423,-462,-464,-472,-452,-475,-468,-616,-629,-613,-595,-640,-640,-660,-655,-1145,-1189,-1134,-1124,-906,-835]} 1. e4 {[%emt 0:00:02][%cal Be2e4,Be4e5][%mdl 32]} g6 {[%emt 0:00:05]} 2. d4 {[%emt 0:00:04]} Bg7 {[%emt 0:00:04]} 3. f4 {[%emt 0:00:22]} d6 {[%emt 0:00:12]} 4. Nf3 {[%emt 0:00:15]} Nf6 {[%emt 0:00:12][%cal Bg8f6,Bf6d7,Bd7b6,Bb6d5][%mdl 32]} 5. e5 {[%emt 0:00:22]} Nfd7 {[%emt 0:04:09]} 6. Nc3 {[%emt 0:12:26]} c5 {[%emt 0:03:22]} 7. exd6 {[%emt 0:05:04]} O-O {[%emt 0:03:09]} 8. dxe7 {[%emt 0:05:09]} (8. Be3 $5 {[%cal Rd4c5]}) 8... Qxe7+ {[%emt 0:00:08] B09: Pirc Defence: Austrian Attack.} 9. Be2 {[%emt 0:00:58] [#]} (9. Qe2 $11 {keeps the balance.} Qxe2+ 10. Bxe2) 9... cxd4 $1 $17 {[%emt 0:00:31]} 10. Nxd4 {[%emt 0:03:50] [#]} (10. Nb5 $17 {was the only defense.}) 10... Nb6 $1 $19 {[%emt 0:02:21] And now ...Rd8 would win. Black has a decisive advantage.} 11. Qd3 {[%emt 0:10:41]} Rd8 {[%emt 0:01:31]} 12. Be3 {[%emt 0:00:53]} Bxd4 {[%emt 0:18:04]} 13. Bxd4 {[%emt 0:00:06]} Nc6 {[%emt 0:00:07] [#]} 14. Nb5 $146 {[%emt 0:05:00]} ({Predecessor:} 14. Qe3 Rxd4 15. Qxe7 Nxe7 16. Nb5 Rxf4 17. Nc7 Rb8 18. O-O-O Bg4 19. Bxg4 Rxg4 20. Rhe1 Nc6 {0-1 (20) Wittkugel,F (1768)-Glueck,J (1891) Bergen 2015}) 14... a6 {[%emt 0:03:29]} ({Inferior is} 14... Nxd4 15. Nxd4 Qb4+ 16. c3 Qxb2 17. O-O $17) 15. Qc3 {[%emt 0:11:01]} Nd5 {[%emt 0:11:06] Against Bf6} ({Weaker is} 15... axb5 16. Bxb6 Bg4 17. O-O Bxe2 18. Bxd8 Qxd8 19. Rfe1 $17) 16. Bc5 {[%emt 0:06:06]} Qe4 {[%emt 0:01:22] Dancing on a razor blade.} ({Not} 16... Nxc3 17. Bxe7 axb5 18. Bxd8 Nxe2 19. Kxe2 $17) 17. Qd3 Qxd3 {[%emt 0:02:31]} 18. Bxd3 {[%emt 0:08:08] This bishop pair is nice.} axb5 {[%emt 0:00:28]} 19. O-O {[%emt 0:00:06]} Bf5 {[%emt 0:03:29]} 20. Bxf5 {[%emt 0:04:30]} gxf5 {[%emt 0:00:06]} 21. Rf3 {[%emt 0:00:49]} Ra4 {[%emt 0:04:39]} 22. Re1 {[%emt 0:10:24]} Rxf4 {[%emt 0:03:33] Black is clearly winning.} 23. Rd3 {[%emt 0:00:31]} Rc4 {[%emt 0:05:09][%csl LRc2,LRc5]} 24. Bf2 {[%emt 0:06:47]} f6 {[%emt 0:05:25]} 25. Red1 {[%emt 0:05:46] [#]} Rxc2 $1 {[%emt 0:01:57]} 26. Bh4 {[%emt 0:01:01] [#]} (26. g3 Nce7) 26... Rxg2+ $3 {[%emt 0:01:06]} 27. Kh1 {[%emt 0:00:34]} Rg4 {[%emt 0:00:34]} 28. Bf2 {[%emt 0:01:00]} Nce7 {[%emt 0:02:38]} 29. Bc5 {[%emt 0:01:53]} Rc8 {[%emt 0:03:22]} 30. Rxd5 {[%emt 0:00:05]} Nxd5 {[%emt 0:00:04]} 31. Rxd5 {[%emt 0:00:04]} f4 {[%emt 0:01:49]} 32. h3 {[%emt 0:00:27]} Rg5 {[%emt 0:00:13] Black took control after the opening.  Weighted Error Value: White=0.57/Black=0.05 (flawless)} 0-1